fUSD/lending_fUSD_20250610
["ID","MTS","AMOUNT","RATE_DAILY","PERIOD"]
[365219498,1749542432972,1804.49,0.000199,31]
[365219499,1749542433033,1804.49,0.000199,31]
[365219500,1749542433100,1804.49,0.000199,31]
[365219501,1749542433168,1804.49,0.000199,31]
[365219502,1749542433233,1804.49,0.000199,31]
[365219503,1749542433295,1804.49,0.000199,31]
[365219504,1749542433363,1804.49,0.000199,31]
[365219505,1749542433425,1804.49,0.000199,31]
[365219506,1749542433494,1804.49,0.000199,31]
[365219507,1749542433557,1804.49,0.000199,31]
[365219508,1749542433619,1804.49,0.000199,31]
[365219509,1749542433685,1804.49,0.000199,31]
[365219510,1749542456301,314.94020566,0.00016931,2]
[365219511,1749542465386,1075.28661251,0.00016592,2]
[365219512,1749542467794,1015.15502545,0.00016592,2]
[365219513,1749542470018,15572.48773698,0.00017,2]
[365219514,1749542470045,24855.4694,0.00017,2]
[365219515,1749542470074,9572.04286302,0.00017,2]
[365219516,1749542470127,1070.78954543,0.00016592,2]
[365219517,1749542472529,1008.51436197,0.00016592,2]
[365219518,1749542474923,1139.33618304,0.00016592,2]
[365219524,1749542519042,150.0,0.000246,120]
[365219525,1749542528984,207.48,0.00016851,2]
[365219527,1749542590241,295.2,0.00016438,2]
[365219528,1749542621983,490.0,0.00016438,2]
[365219529,1749542622490,490.0,0.00016602,2]
[365219530,1749542622535,480.0,0.00016438,2]
[365219531,1749542622572,268.04,0.00016767,2]
[365219532,1749542643778,150.0,0.000246,120]
[365219533,1749542652267,200.0,0.00016015,2]
[365219534,1749542652549,200.0,0.00016602,2]
[365219535,1749542654809,1200.0,0.0002,30]
[365219539,1749542758276,330.68721595,0.00017,2]
[365219540,1749542759168,264.54977276,0.00017,2]
[365219541,1749542759939,211.6398182,0.00017,2]
[365219542,1749542760742,169.31185456,0.00017,2]
[365219543,1749542761481,151.0,0.00017,2]
[365219544,1749542767094,150.0,0.000246,120]
[365219545,1749542770686,173.87,0.00016831,2]
[365219549,1749542852490,500.0,0.000168,2]
[365219551,1749542871265,500.0,0.00017,2]
[365219552,1749542881909,500.0,0.00017,2]
[365219553,1749542890164,150.0,0.000246,120]
[365219554,1749542898876,575.0,0.00017,2]
[365219555,1749542917219,480.0,0.00016438,2]
[365219561,1749543012049,200.0,0.00016188,2]
[365219562,1749543012325,200.0,0.00016788,2]
[365219563,1749543013374,150.0,0.000246,120]
[365219567,1749543031514,-315.94,0.00017013,2]
[365219568,1749543031603,-884.06,0.00017013,2]
[365219569,1749543031614,-255.72706964,0.00017014,2]
[365219570,1749543031627,-44.27293036,0.00017014,2]
[365219571,1749543031637,-300.0,0.00017014,2]
[365219572,1749543031648,-300.0,0.00017014,2]
[365219573,1749543031658,-500.0,0.00017015,2]
[365219574,1749543031668,-500.0,0.00017015,2]
[365219575,1749543031680,-500.0,0.00017015,2]
[365219576,1749543031690,-500.0,0.00017015,2]
[365219577,1749543031700,-500.0,0.00017015,2]
[365219578,1749543031710,-500.0,0.00017015,2]
[365219579,1749543031721,-398.13896033,0.000171,2]
[365219580,1749543031731,-192.03,0.000172,2]
[365219581,1749543031741,-532.73,0.00017281,2]
[365219582,1749543031751,-343.74554052,0.00017317,2]
[365219583,1749543031761,-200.0,0.00017389,3]
[365219584,1749543031771,-1036.08803834,0.00017488,2]
[365219585,1749543031781,-163.3,0.000175,2]
[365219586,1749543031791,-467.0,0.00017562,2]
[365219587,1749543031801,-150.99,0.00017562,2]
[365219588,1749543031811,-2000.0,0.00017562,2]
[365219589,1749543031820,-151.0,0.00017578,2]
[365219590,1749543031829,-207.4,0.00017578,2]
[365219591,1749543031839,-342.0,0.00017587,2]
[365219592,1749543031848,-9999.99,0.00017588,2]
[365219593,1749543031857,-9999.99,0.00017588,2]
[365219594,1749543031866,-9999.99,0.00017588,2]
[365219595,1749543031876,-212.7,0.00017588,2]
[365219596,1749543031885,-1087.86,0.00017588,2]
[365219597,1749543031895,-315.0,0.00017588,2]
[365219598,1749543031904,-335.76,0.00017588,2]
[365219599,1749543031914,-374.68402369,0.00017629,2]
[365219600,1749543031924,-469.66931137,0.00017629,2]
[365219601,1749543031935,-1085.813895,0.0001763,2]
[365219602,1749543031944,-9999.99,0.0001763,2]
[365219603,1749543031954,-150.99,0.0001763,2]
[365219604,1749543031963,-299.99,0.0001763,4]
[365219605,1749543031972,-2000.0,0.00017657,2]
[365219606,1749543031982,-833.29909032,0.00017679,2]
[365219607,1749543031991,-637.0,0.00017746,2]
[365219608,1749543032000,-802.0,0.00017746,2]
[365219609,1749543032009,-590.0,0.00017746,2]
[365219610,1749543032018,-558.0,0.00017746,2]
[365219611,1749543032027,-927.0,0.00017746,2]
[365219612,1749543032037,-52.69887931,0.00017746,2]
[365219613,1749543032049,-1948.30112069,0.00017746,2]
[365219614,1749543032059,-1275.0,0.00017746,2]
[365219615,1749543032068,-1256.0,0.00017746,2]
[365219616,1749543032078,-883.0,0.00017746,2]
[365219617,1749543032087,-1349.77706103,0.00017746,2]
[365219618,1749543032102,-1048.80954549,0.00017746,2]
[365219619,1749543032114,-1686.41339348,0.00017746,2]
[365219622,1749543032123,-912.303,0.00017746,2]
[365219625,1749543032132,-500.0,0.00017752,2]
[365219627,1749543032142,-2000.0,0.00017752,2]
[365219630,1749543032151,-500.0,0.00017752,2]
[365219633,1749543032161,-164.34090831,0.00017799,2]
[365219637,1749543032180,-1835.65909169,0.00017799,2]
[365219640,1749543032189,-250.0,0.00017799,2]
[365219642,1749543032199,-500.0,0.00017799,2]
[365219644,1749543032208,-150.0,0.00017799,2]
[365219646,1749543032222,-255.46701861,0.00017799,2]
[365219648,1749543032231,-228.86334414,0.00017799,2]
[365219656,1749543037550,-381.59225543,0.00017746,2]
[365219657,1749543037562,-2734.732,0.00017746,2]
[365219658,1749543038116,-1003.55473723,0.00017746,2]
[365219659,1749543038192,-2944.12100734,0.00017746,2]
[365219660,1749543038202,-271.13665586,0.00017799,2]
[365219661,1749543038211,-150.0,0.00017799,2]
[365219662,1749543038220,-259.24769506,0.00017799,2]
[365219663,1749543038230,-150.0,0.00017799,2]
[365219664,1749543038240,-250.0,0.00017799,2]
[365219665,1749543038249,-500.0,0.00017799,2]
[365219666,1749543038259,-150.0,0.00017799,2]
[365219667,1749543038269,-150.0,0.00017799,2]
[365219668,1749543038279,-500.0,0.00017799,2]
[365219669,1749543038288,-341.22,0.000178,2]
[365219670,1749543038297,-461.25,0.000178,2]
[365219671,1749543038307,-295.74451207,0.000178,2]
[365219675,1749543038524,-500.0,0.000178,2]
[365219677,1749543038533,-150.0,0.00017826,2]
[365219679,1749543038543,-500.0,0.00017826,2]
[365219681,1749543038553,-150.0,0.00017826,2]
[365219683,1749543038563,-200.0,0.00017826,2]
[365219685,1749543038573,-500.0,0.00017826,2]
[365219687,1749543038583,-150.0,0.00017826,2]
[365219689,1749543038593,-150.0,0.00017826,2]
[365219691,1749543038603,-453.07886354,0.00017826,2]
[365219693,1749543038615,-46.92113646,0.00017826,2]
[365219695,1749543038625,-500.0,0.00017827,2]
[365219697,1749543038634,-145.82886341,0.00017845,2]
[365219840,1749543040211,-155.0,0.00017746,2]
[365219842,1749543040222,-1854.17113659,0.00017845,2]
[365219844,1749543040231,-250.0,0.00017854,2]
[365219846,1749543040241,-500.0,0.00017854,2]
[365219848,1749543040251,-250.0,0.00017854,2]
[365219850,1749543040262,-500.0,0.00017854,2]
[365219853,1749543040273,-250.0,0.00017854,2]
[365219854,1749543040283,-250.0,0.00017854,2]
[365219856,1749543040293,-632.0,0.00017854,2]
[365219859,1749543040303,-166.91159111,0.00017855,2]
[365219861,1749543040314,-227.61128182,0.00017855,2]
[365219863,1749543040324,-458.023,0.0001788,2]
[365219865,1749543040334,-500.0,0.00017881,2]
[365219867,1749543040343,-500.0,0.00017881,2]
[365219868,1749543040352,-282.53430199,0.00017888,2]
[365219988,1749543042780,-372.05640889,0.00017888,2]
[365219990,1749543042790,-623.42909971,0.0001789,2]
[365219992,1749543042800,-1683.3002,0.000179,2]
[365219993,1749543042810,-171.06606983,0.000179,2]
[365219994,1749543042819,-35.40422157,0.000179,2]
[365219995,1749543042959,-135.66184826,0.000179,2]
[365219996,1749543042968,-1268.85232512,0.000179,2]
[365219997,1749543042978,-255.55207803,0.00017926,2]
[365220012,1749543044731,1537.13,0.000199,31]
[365220013,1749543044847,1537.13,0.000199,31]
[365220014,1749543044914,1537.13,0.000199,31]
[365220015,1749543044974,1537.13,0.000199,31]
[365220016,1749543045038,1537.13,0.000199,31]
[365220017,1749543045279,1537.13,0.000199,31]
[365220018,1749543045353,1537.13,0.000199,31]
[365220019,1749543045434,1537.13,0.000199,31]
[365220021,1749543045499,1537.13,0.000199,31]
[365220022,1749543045559,1537.13,0.000199,31]
[365220023,1749543045845,1537.13,0.000199,31]
[365220024,1749543045911,1537.13,0.000199,31]
[365220025,1749543045971,1537.13,0.000199,31]
[365220026,1749543046030,1537.13,0.000199,31]
[365220027,1749543046093,1537.13,0.000199,31]
[365220028,1749543046155,1537.13,0.000199,31]
[365220029,1749543046168,-3074.44792197,0.00017926,2]
[365220030,1749543046178,-945.0,0.00017926,2]
[365220031,1749543046192,-654.59071087,0.00017937,2]
[365220032,1749543046202,-623.42909968,0.00017939,2]
[365220033,1749543046212,-161.0,0.00017962,2]
[365220034,1749543046222,-152.39864103,0.00017973,2]
[365220035,1749543046233,-469.85630973,0.00017973,2]
[365220036,1749543046242,-500.0,0.00017973,2]
[365220037,1749543046252,-500.85649628,0.00017973,2]
[365220038,1749543046263,-500.0,0.00017973,2]
[365220039,1749543046272,-500.0,0.00017973,2]
[365220040,1749543046282,-500.0,0.00017973,2]
[365220041,1749543046291,-500.0,0.00017973,2]
[365220042,1749543046300,-500.0,0.00017973,2]
[365220043,1749543046310,-500.0,0.00017973,2]
[365220044,1749543046320,-500.0,0.00017973,2]
[365220045,1749543046330,-500.0,0.00017973,2]
[365220046,1749543046339,-500.0,0.00017973,2]
[365220047,1749543046349,-500.0,0.00017973,2]
[365220048,1749543046358,-500.0,0.00017973,2]
[365220049,1749543046367,-501.89816577,0.00017973,2]
[365220050,1749543046377,-502.64390465,0.00017973,2]
[365220051,1749543046387,-500.91731703,0.00017973,2]
[365220052,1749543046397,-161.96437874,0.00017973,2]
[365220053,1749543046406,-500.0,0.00017973,2]
[365220054,1749543046416,-299.46345753,0.00017978,2]
[365220055,1749543046425,-207.01454208,0.00017978,2]
[365220056,1749543046435,-500.0,0.00017978,2]
[365220057,1749543046446,-500.0,0.00017978,2]
[365220058,1749543046456,-500.0,0.00017978,2]
[365220059,1749543046465,-500.0,0.00017978,2]
[365220060,1749543046475,-500.0,0.00017978,2]
[365220061,1749543046485,-500.0,0.00017978,2]
[365220062,1749543046495,-387.60942745,0.00017978,2]
[365220063,1749543046505,-500.0,0.00017978,2]
[365220064,1749543046515,-585.09,0.00017979,2]
[365220065,1749543046525,-500.0,0.00017979,2]
[365220066,1749543046535,-23594.75278073,0.0001798,5]
[365220067,1749543046547,-2624.94,0.0001798,5]
[365220068,1749543046558,-2732.63099999,0.0001798,5]
[365220069,1749543136530,150.0,0.000246,120]
[365220070,1749543219150,5178.00778507,0.00017,2]
[365220071,1749543219180,24855.4694,0.00017,2]
[365220072,1749543219453,19966.52281493,0.00017,2]
[365220073,1749543229977,479.45,0.00015088,2]
[365220074,1749543239779,4409.49658507,0.00017,2]
[365220075,1749543239808,24855.4694,0.00017,2]
[365220076,1749543239835,24855.4694,0.00017,2]
[365220078,1749543259604,150.0,0.000246,120]
[365220079,1749543307818,150.0,0.00017003,7]
[365220080,1749543382913,150.0,0.000246,120]
[365220082,1749543437902,1722.31,0.00019205,30]
[365220083,1749543500928,50000.0,0.00017052,5]
[365220084,1749543506025,150.0,0.000246,120]
[365220086,1749543559387,50000.0,0.00017052,5]
[365220087,1749543628858,150.0,0.000246,120]
[365220088,1749543652540,189.81,0.00013699,2]
[365220089,1749543656674,1291.31,0.000199,31]
[365220090,1749543657045,1291.31,0.000199,31]
[365220091,1749543657104,1291.31,0.000199,31]
[365220092,1749543657159,1291.31,0.000199,31]
[365220093,1749543657213,1291.31,0.000199,31]
[365220094,1749543657280,1291.31,0.000199,31]
[365220095,1749543657347,1291.31,0.000199,31]
[365220096,1749543657400,1291.31,0.000199,31]
[365220097,1749543657458,1291.31,0.000199,31]
[365220098,1749543657519,1291.31,0.000199,31]
[365220099,1749543657586,1291.31,0.000199,31]
[365220100,1749543657639,1291.31,0.000199,31]
[365220101,1749543657695,1291.31,0.000199,31]
[365220102,1749543657756,1291.31,0.000199,31]
[365220103,1749543657820,1291.31,0.000199,31]
[365220104,1749543658150,1291.31,0.000199,31]
[365220106,1749543661140,50000.0,0.00017052,5]
[365220107,1749543731852,200.0,0.00015989,2]
[365220109,1749543751659,150.0,0.000246,120]
[365220110,1749543875079,150.0,0.000246,120]
[365220111,1749543998493,150.0,0.000246,120]
[365220112,1749544091777,200.0,0.00015618,2]
[365220121,1749544121291,150.0,0.000246,120]
[365220184,1749544231650,-200.0,0.00016261,2]
[365220185,1749544231660,-300.0,0.00016437,2]
[365220186,1749544231671,-1200.0,0.00016437,2]
[365220187,1749544231680,-300.0,0.00016437,2]
[365220188,1749544231690,-480.0,0.00016438,2]
[365220189,1749544231701,-480.0,0.00016438,2]
[365220190,1749544231711,-490.0,0.00016438,2]
[365220191,1749544231720,-480.0,0.00016438,2]
[365220192,1749544231730,-480.0,0.00016438,2]
[365220193,1749544231740,-480.0,0.00016438,2]
[365220194,1749544231749,-490.0,0.00016438,2]
[365220195,1749544231759,-480.0,0.00016438,2]
[365220196,1749544231768,-480.0,0.00016438,2]
[365220197,1749544231778,-490.0,0.00016438,2]
[365220198,1749544231787,-480.0,0.00016438,2]
[365220199,1749544231797,-480.0,0.00016438,2]
[365220200,1749544231807,-586.51,0.00016438,2]
[365220201,1749544231816,-490.0,0.00016438,2]
[365220202,1749544231826,-480.0,0.00016438,2]
[365220203,1749544231836,-478.86,0.00016602,2]
[365220204,1749544231846,-155.46,0.00016602,2]
[365220205,1749544231855,-490.0,0.00016602,2]
[365220206,1749544231864,-240.08,0.00016602,2]
[365220207,1749544231874,-1634.59,0.00016756,2]
[365220208,1749544231883,-490.0,0.00016767,2]
[365220209,1749544231892,-207.4,0.00016781,2]
[365220211,1749544231901,-186.69,0.0001682,2]
[365220212,1749544231909,-1000.0,0.00016836,2]
[365220213,1749544231917,-250.0,0.00016852,2]
[365220214,1749544231926,-200.0,0.00016904,3]
[365220215,1749544231935,-490.0,0.00016931,2]
[365220216,1749544231944,-490.0,0.00017095,2]
[365220218,1749544231953,-354.46,0.00017178,2]
[365220219,1749544231963,-490.0,0.0001726,2]
[365220220,1749544231972,-354.46,0.000173,2]
[365220221,1749544231981,-479.45,0.00017352,2]
[365220222,1749544231991,-150.99,0.00017424,2]
[365220223,1749544232000,-490.0,0.00017424,2]
[365220225,1749544232009,-354.46,0.00017487,2]
[365220226,1749544232018,-359.21,0.00017487,2]
[365220227,1749544232028,-200.0,0.00017547,4]
[365220229,1749544232037,-490.0,0.00017589,2]
[365220230,1749544232046,-968.926586,0.0001763,2]
[365220231,1749544232055,-2475.6864065,0.000177,2]
[365220232,1749544232064,-833.29909032,0.00017728,2]
[365220233,1749544232073,-490.0,0.00017753,2]
[365220235,1749544232083,-366.419,0.0001782,2]
[365220237,1749544232092,-151.0,0.00017833,2]
[365220239,1749544232101,-500.0,0.00017842,2]
[365220241,1749544232111,-2000.0,0.00017842,2]
[365220242,1749544232120,-500.0,0.00017842,2]
[365220243,1749544232129,-637.0,0.00017844,2]
[365220244,1749544232138,-802.0,0.00017844,2]
[365220245,1749544232147,-1275.0,0.00017844,2]
[365220246,1749544232155,-590.0,0.00017844,2]
[365220247,1749544232165,-927.0,0.00017844,2]
[365220248,1749544232174,-558.0,0.00017844,2]
[365220249,1749544232183,-2001.0,0.00017844,2]
[365220250,1749544232192,-1256.0,0.00017844,2]
[365220251,1749544232201,-1159.0,0.00017844,2]
[365220252,1749544232211,-945.0,0.00017844,2]
[365220253,1749544232220,-3330.0,0.00017844,2]
[365220254,1749544232229,-523.67256875,0.0001788,2]
[365220255,1749544232238,-150.0,0.00017881,2]
[365220256,1749544232247,-150.0,0.00017881,2]
[365220258,1749544232257,-150.0,0.00017881,2]
[365220260,1749544232265,-523.67256869,0.00017881,2]
[365220262,1749544232275,-523.67256869,0.00017882,2]
[365220263,1749544232284,-523.67256869,0.00017883,2]
[365220264,1749544232293,-315.28397391,0.00017884,2]
[365220265,1749544232302,-523.67256869,0.00017884,2]
[365220266,1749544232311,-523.67256869,0.00017886,2]
[365220267,1749544232321,-523.67256869,0.00017887,2]
[365220268,1749544232330,-523.67256869,0.00017888,2]
[365220269,1749544232340,-523.67256869,0.00017889,2]
[365220270,1749544232349,-238.31334136,0.0001789,2]
[365220271,1749544232358,-253.71232468,0.0001789,2]
[365220272,1749544232368,-523.67256869,0.0001789,2]
[365220273,1749544232378,-219.48302286,0.0001789,2]
[365220274,1749544232609,-2429.63606364,0.0001789,2]
[365220275,1749544232619,-845.90155008,0.0001789,2]
[365220276,1749544232630,-4987.43279744,0.0001789,2]
[365220277,1749544232639,-150.0,0.00017908,2]
[365220278,1749544232650,-150.0,0.00017908,2]
[365220279,1749544232660,-150.0,0.00017908,2]
[365220280,1749544232670,-490.0,0.00017917,2]
[365220281,1749544232680,-250.0,0.00017936,2]
[365220282,1749544232689,-233.0,0.00017936,2]
[365220283,1749544232699,-200.0,0.00017936,2]
[365220284,1749544232709,-420.0,0.00017963,2]
[365220285,1749544232719,-500.0,0.00017973,2]
[365220286,1749544232728,-500.0,0.00017973,2]
[365220287,1749544232739,-333.33110275,0.00017973,2]
[365220288,1749544232748,-546.65393071,0.00017973,2]
[365220289,1749544232758,-500.0,0.00017973,2]
[365220290,1749544232768,-500.0,0.00017973,2]
[365220291,1749544232778,-209.62442027,0.00017979,2]
[365220292,1749544232788,-500.0,0.00017979,2]
[365220293,1749544232798,-500.0,0.00017979,2]
[365220294,1749544232807,-221.32659921,0.00017979,2]
[365220295,1749544232817,-500.0,0.00017979,2]
[365220296,1749544232826,-500.0,0.00017979,2]
[365220297,1749544232836,-500.0,0.00017979,2]
[365220298,1749544232846,-500.0,0.00017979,2]
[365220299,1749544232855,-500.0,0.00017979,2]
[365220300,1749544232865,-500.0,0.00017979,2]
[365220301,1749544232874,-500.0,0.00017979,2]
[365220302,1749544232884,-500.0,0.00017979,2]
[365220303,1749544232893,-500.0,0.00017979,2]
[365220304,1749544232903,-500.0,0.00017979,2]
[365220305,1749544232912,-600.0,0.00017979,2]
[365220306,1749544232922,-500.0,0.00017979,2]
[365220307,1749544232931,-500.0,0.00017979,2]
[365220308,1749544232941,-500.0,0.00017979,2]
[365220309,1749544232950,-151.0,0.00017979,2]
[365220310,1749544232961,-153.02,0.0001798,2]
[365220311,1749544232971,-153.02,0.0001798,2]
[365220312,1749544232981,-153.02,0.0001798,2]
[365220313,1749544232991,-153.02,0.0001798,2]
[365220314,1749544233000,-153.02,0.0001798,2]
[365220315,1749544233010,-153.02,0.0001798,2]
[365220316,1749544233020,-153.02,0.0001798,2]
[365220317,1749544233029,-153.02,0.0001798,2]
[365220318,1749544233038,-153.02,0.0001798,2]
[365220319,1749544233048,-153.02,0.0001798,2]
[365220320,1749544233058,-154.61946531,0.0001798,2]
[365220321,1749544233068,-52234.79111704,0.0001798,5]
[365220322,1749544233081,-43756.71523954,0.0001798,5]
[365220323,1749544233092,-8683.28565027,0.0001798,2]
[365220324,1749544233176,-4897.46828577,0.0001798,2]
[365220325,1749544233187,-1633.16701062,0.0001798,2]
[365220326,1749544233290,-881.71597347,0.0001798,2]
[365220327,1749544233300,-1789.36303097,0.0001798,2]
[365220328,1749544233309,-151.0,0.00017988,2]
[365220329,1749544233316,-280.281581,0.00017988,2]
[365220330,1749544233323,-151.0,0.00017988,2]
[365220331,1749544233331,-151.0,0.00017988,2]
[365220332,1749544233340,-151.0,0.00017988,2]
[365220333,1749544233347,-1257.63,0.00017988,2]
[365220334,1749544233354,-300.0,0.00017989,2]
[365220335,1749544233361,-300.0,0.00017989,2]
[365220336,1749544233369,-300.0,0.00017989,2]
[365220337,1749544233379,-563.83,0.00017989,2]
[365220338,1749544233388,-560.71,0.00017989,2]
[365220339,1749544233398,-560.71,0.00017989,2]
[365220340,1749544233408,-560.71,0.00017989,2]
[365220341,1749544233418,-560.71,0.00017989,2]
[365220342,1749544233427,-560.71,0.00017989,2]
[365220343,1749544233438,-560.71,0.00017989,2]
[365220344,1749544233448,-347.93360893,0.00017989,2]
[365220345,1749544233461,-212.77639107,0.00017989,2]
[365220346,1749544233471,-220.50561177,0.00017989,2]
[365220347,1749544233483,-340.20438823,0.00017989,2]
[365220348,1749544233494,-560.71,0.00017989,2]
[365220349,1749544233504,-395.37095906,0.00017989,2]
[365220361,1749544237622,-2400.31138835,0.00017844,2]
[365220362,1749544237693,-4050.8538783,0.00017844,2]
[365220363,1749544237705,-612.83473335,0.00017844,2]
[365220364,1749544237715,-165.33904094,0.00017989,2]
[365220365,1749544237725,-560.71,0.00017989,2]
[365220366,1749544237735,-560.71,0.00017989,2]
[365220367,1749544237745,-560.71,0.00017989,2]
[365220368,1749544237755,-213.29622571,0.00017989,2]
[365220369,1749544237771,-347.41377429,0.00017989,2]
[365220370,1749544237781,-552.3420344,0.00017989,2]
[365220371,1749544237793,-8.3679656,0.00017989,2]
[365220372,1749544237802,-519.5820344,0.00017989,2]
[365220880,1749544242786,-155.0,0.00017844,2]
[365220882,1749544242795,-163.53690915,0.0001789,2]
[365220884,1749544242805,-41.1279656,0.00017989,2]
[365220886,1749544242815,-560.71,0.00017989,2]
[365220888,1749544242824,-560.71,0.00017989,2]
[365220890,1749544242833,-558.7038748,0.00017989,2]
[365220913,1749544243051,-2.0061252,0.00017989,2]
[365220915,1749544243061,-560.71,0.00017989,2]
[365220917,1749544243071,-560.71,0.00017989,2]
[365220919,1749544243080,-560.71,0.00017989,2]
[365220921,1749544243089,-560.71,0.00017989,2]
[365220923,1749544243099,-560.78,0.00017989,2]
[365220925,1749544243108,-151.0,0.00017989,2]
[365220927,1749544243118,-36.5738738,0.00017989,2]
[365221024,1749544244091,150.0,0.000246,120]
[365221356,1749544247663,-114.4261262,0.00017989,2]
[365221358,1749544247674,-304.28,0.00017989,2]
[365221360,1749544247685,-152.3718,0.00017989,2]
[365221362,1749544247695,-152.3718,0.00017989,2]
[365221364,1749544247707,-148.2102738,0.00017989,2]
[365221367,1749544247722,-2.7897262,0.00017989,2]
[365221369,1749544247732,-151.0,0.00017989,2]
[365221371,1749544247742,-151.0,0.00017989,2]
[365221373,1749544247753,-151.0,0.00017989,2]
[365221375,1749544247763,-151.0,0.00017989,2]
[365221377,1749544247774,-151.0,0.00017989,2]
[365221379,1749544247786,-151.0,0.00017989,2]
[365221382,1749544247796,-327.517278,0.00017989,2]
[365221384,1749544247807,-327.517278,0.00017989,2]
[365221386,1749544247818,-151.0,0.00017989,2]
[365221388,1749544247829,-151.0,0.00017989,2]
[365221390,1749544247840,-331.648881,0.00017989,2]
[365221392,1749544247851,-151.0,0.00017989,2]
[365221394,1749544247862,-331.648881,0.00017989,2]
[365221396,1749544247872,-197.567333,0.00017989,2]
[365221398,1749544247882,-442.60614661,0.00017989,2]
[365221400,1749544247893,-151.0,0.00017989,2]
[365221402,1749544247903,-151.0,0.00017989,2]
[365221405,1749544247914,-151.0,0.00017989,2]
[365221407,1749544247924,-221.669479,0.00017989,2]
[365221409,1749544247936,-152.366551,0.00017989,2]
[365221411,1749544247947,-151.0,0.00017989,2]
[365221413,1749544247958,-152.324664,0.00017989,2]
[365221415,1749544247970,-6239.514832,0.00017989,2]
[365221417,1749544247982,-6239.514832,0.00017989,2]
[365221419,1749544247993,-151.0,0.00017989,2]
[365221421,1749544248004,-151.0,0.00017989,2]
[365221423,1749544248015,-151.0,0.00017989,2]
[365221425,1749544248027,-300.581555,0.00017989,2]
[365221428,1749544248038,-151.0,0.00017989,2]
[365221430,1749544248049,-740.481661,0.00017989,2]
[365221432,1749544248060,-300.581555,0.00017989,2]
[365221434,1749544248071,-151.0,0.00017989,2]
[365221436,1749544248081,-740.481661,0.00017989,2]
[365221438,1749544248092,-151.0,0.00017989,2]
[365221440,1749544248103,-151.0,0.00017989,2]
[365221442,1749544248115,-151.0,0.00017989,2]
[365221445,1749544248127,-151.0,0.00017989,2]
[365221447,1749544248138,-151.0,0.00017989,2]
[365221449,1749544248150,-833.29909032,0.0001799,3]
[365221451,1749544248161,-5896.3433254,0.0001799,3]
[365221457,1749544248207,-2463.57372427,0.0001799,3]
[365221616,1749544267568,431.5,0.00015326,2]
[365221617,1749544269272,1084.8,0.000199,31]
[365221618,1749544269329,1084.8,0.000199,31]
[365221619,1749544269397,1084.8,0.000199,31]
[365221620,1749544269457,1084.8,0.000199,31]
[365221621,1749544269513,1084.8,0.000199,31]
[365221622,1749544269852,1084.8,0.000199,31]
[365221623,1749544269918,1084.8,0.000199,31]
[365221624,1749544269976,1084.8,0.000199,31]
[365221625,1749544270034,1084.8,0.000199,31]
[365221626,1749544270110,1084.8,0.000199,31]
[365221627,1749544270171,1084.8,0.000199,31]